bitfinex-derivatives/quotes_BTCF0:USTF0_20240929
["timestamp","ask_amount","ask_price","bid_price","bid_amount"]
[1727578394604,0.4712,65908.0,65907.0,0.0035]
[1727578394906,0.4712,65908.0,65903.0,0.0035]
[1727578395101,0.11,65904.0,65903.0,0.0035]
[1727578395311,0.11,65904.0,65902.0,0.542878]
[1727578395312,0.1034,65904.0,65902.0,0.437418]
[1727578395510,0.1004,65904.0,65902.0,0.436658]
[1727578395807,0.0004,65903.0,65902.0,0.436658]
[1727578396012,0.1004,65904.0,65902.0,0.436658]
[1727578396305,0.1004,65904.0,65903.0,0.014]
[1727578396899,0.1004,65904.0,65902.0,0.450658]
[1727578397100,0.0004,65903.0,65902.0,0.450658]
[1727578397403,0.06685502,65903.0,65902.0,0.450658]
[1727578398310,0.06685502,65903.0,65902.0,0.089858]
[1727578399093,0.05285502,65903.0,65902.0,0.075858]
[1727578399307,0.05385502,65903.0,65902.0,0.075858]
[1727578399896,0.05485502,65903.0,65902.0,0.089858]
[1727578401605,0.15243332,65903.0,65902.0,0.089858]
[1727578401907,0.03130454,65903.0,65902.0,0.014]
[1727578404306,0.002,65903.0,65902.0,0.014]
[1727578408906,0.0644446,65904.0,65902.0,0.12322805]
[1727578409102,0.0644446,65904.0,65903.0,0.10922805]
[1727578410106,0.1403006,65904.0,65903.0,0.10922805]
[1727578411214,0.1413006,65904.0,65903.0,0.10922805]
[1727578411811,0.1403006,65904.0,65903.0,0.10922805]
[1727578412031,0.1423006,65904.0,65903.0,0.13122805]
[1727578412410,0.1423006,65904.0,65903.0,0.022]
[1727578412911,0.1716056,65904.0,65903.0,0.022]
[1727578416512,0.1423006,65904.0,65903.0,0.022]
[1727578417209,0.17160567,65904.0,65903.0,0.022]
[1727578417715,0.1423006,65904.0,65903.0,0.022]
[1727578419012,0.17160561,65904.0,65903.0,0.022]
[1727578419319,0.17160561,65904.0,65903.0,0.13095066]
[1727578419320,0.1423006,65904.0,65903.0,0.13095066]
[1727578420324,0.08916308,65904.0,65903.0,0.26088096]
[1727578420526,0.08916308,65904.0,65903.0,0.13095066]
[1727578421425,0.08916308,65904.0,65903.0,0.26045463]
[1727578426926,0.08916308,65904.0,65903.0,0.26055661]
[1727578427316,0.08916308,65904.0,65903.0,0.13083247]
[1727578428423,0.08916308,65904.0,65903.0,0.26053711]
[1727578428623,0.08916308,65904.0,65903.0,0.13083247]
[1727578430020,0.08916308,65904.0,65903.0,0.13081886]
[1727578430612,0.08916308,65904.0,65903.0,0.2604545]
[1727578432027,0.08916308,65904.0,65903.0,0.26042171]
[1727578434436,0.22576512,65904.0,65903.0,0.022]
[1727578434727,0.20218362,65904.0,65903.0,0.022]
[1727578435434,0.33878566,65904.0,65903.0,0.022]
[1727578435636,0.20218362,65904.0,65903.0,0.022]
[1727578437333,0.33878566,65904.0,65903.0,0.022]
[1727578437535,0.20218362,65904.0,65903.0,0.022]
[1727578437832,0.33878566,65904.0,65903.0,0.022]
[1727578439940,0.20218362,65904.0,65903.0,0.022]
[1727578440142,0.33879837,65904.0,65903.0,0.022]
[1727578441834,0.20218362,65904.0,65903.0,0.022]
[1727578442530,0.08916308,65904.0,65903.0,0.26054773]
[1727578450046,0.0024,65904.0,65903.0,0.26054773]
[1727578450239,0.3608,65906.0,65905.0,0.075855]
[1727578450443,0.441505,65914.0,65907.0,0.075853]
[1727578450639,0.0004,65912.0,65908.0,0.38203719]
[1727578450845,0.02761359,65912.0,65909.0,0.23853719]
[1727578451051,0.0004,65912.0,65910.0,0.23853719]
[1727578451251,0.1104,65912.0,65911.0,0.23853719]
[1727578451652,0.1114,65912.0,65911.0,0.23853719]
[1727578452545,0.1114,65912.0,65911.0,0.24353719]
[1727578452852,0.1114,65912.0,65911.0,0.24953719]
[1727578453351,0.1114,65912.0,65911.0,0.11982361]
[1727578453851,0.001,65912.0,65911.0,0.11982361]
[1727578454243,0.111,65912.0,65911.0,0.11982361]
[1727578455041,0.111,65912.0,65911.0,0.11916206]
[1727578456051,0.186847,65912.0,65911.0,0.11916206]
[1727578457457,0.29986024,65912.0,65911.0,0.011]
[1727578459849,0.66066024,65912.0,65911.0,0.011]
[1727578463848,0.29986024,65912.0,65911.0,0.011]
[1727578464050,0.66066024,65912.0,65911.0,0.011]
[1727578464447,0.186847,65912.0,65911.0,0.011]
[1727578464647,0.547647,65912.0,65911.0,0.011]
[1727578466455,0.186847,65912.0,65911.0,0.011]
[1727578466654,0.547647,65912.0,65911.0,0.011]
[1727578471664,0.186847,65912.0,65911.0,0.011]
[1727578472162,0.547647,65912.0,65911.0,0.011]
[1727578472662,0.66066407,65912.0,65911.0,0.011]
[1727578474658,0.57695062,65912.0,65911.0,0.011]
[1727578474861,0.66066565,65912.0,65911.0,0.011]
[1727578479468,0.547647,65912.0,65911.0,0.21032799]
[1727578482255,0.547647,65912.0,65911.0,0.21039403]
[1727578487469,0.547647,65912.0,65911.0,0.11936233]
[1727578487670,0.66066591,65912.0,65911.0,0.011]
[1727578490164,0.62351637,65912.0,65911.0,0.011]
[1727578490476,0.66066647,65912.0,65911.0,0.011]
[1727578490987,0.58481947,65912.0,65904.0,0.0035]
[1727578491277,0.186255,65905.0,65904.0,0.0035]
[1727578491463,0.07586,65901.0,65900.0,0.0035]
[1727578491662,0.25271434,65901.0,65899.0,0.3953]
[1727578491863,0.11341947,65900.0,65899.0,0.3953]
[1727578493072,0.10041947,65900.0,65899.0,0.0345]
[1727578493477,0.08841947,65900.0,65899.0,0.0345]
[1727578493680,0.08941947,65900.0,65899.0,0.0485]
[1727578494377,0.08941947,65900.0,65899.0,0.0625]
[1727578494581,0.14211274,65901.0,65899.0,0.62159734]
[1727578494880,0.0004,65901.0,65900.0,0.55909734]
[1727578495376,0.076261,65901.0,65900.0,0.55909734]
[1727578495575,0.076261,65901.0,65900.0,0.38825138]
[1727578495977,0.186261,65901.0,65900.0,0.38825138]
[1727578496479,0.187261,65901.0,65900.0,0.39325138]
[1727578496774,0.188261,65901.0,65900.0,0.39325138]
[1727578497469,0.188261,65901.0,65900.0,0.39425138]
[1727578498269,0.188261,65901.0,65900.0,0.56367767]
[1727578498776,0.188261,65901.0,65900.0,0.39425138]
[1727578499079,0.1503056,65901.0,65900.0,0.56367441]
[1727578499668,0.1503056,65901.0,65900.0,0.39425138]
[1727578500677,0.0403056,65901.0,65900.0,0.39425138]
[1727578500873,0.1503056,65901.0,65900.0,0.39425138]
[1727578502474,0.1503056,65901.0,65900.0,0.39013777]
[1727578502675,0.21676568,65901.0,65900.0,0.006]
[1727578507496,0.33805089,65901.0,65900.0,0.006]
[1727578509598,0.1503056,65901.0,65900.0,0.24137864]
[1727578512190,0.1503056,65901.0,65900.0,0.11337321]
[1727578512395,0.1503056,65901.0,65900.0,0.24135796]
[1727578515591,0.10475669,65901.0,65900.0,0.24135796]
[1727578516290,0.18061769,65901.0,65900.0,0.24135796]
[1727578516995,0.18061769,65901.0,65900.0,0.13352757]
[1727578517188,0.18061769,65901.0,65900.0,0.24051723]
[1727578517696,0.18061769,65901.0,65900.0,0.006]
[1727578524614,0.29364957,65901.0,65900.0,0.006]
[1727578527001,0.29364969,65901.0,65900.0,0.006]
[1727578530807,0.185864,65897.0,65896.0,0.0035]
[1727578531100,0.075869,65893.0,65892.0,0.3643]
[1727578531304,0.186269,65893.0,65892.0,0.3608]
[1727578531493,0.37410576,65893.0,65892.0,0.3608]
[1727578532001,0.36110576,65893.0,65892.0,0.3608]
[1727578532298,0.35410576,65893.0,65892.0,0.3608]
[1727578532503,0.075872,65891.0,65888.0,0.00577634]
[1727578532690,0.178872,65890.0,65889.0,0.23534993]
[1727578533305,0.171872,65890.0,65889.0,0.23534993]
[1727578533800,0.171872,65890.0,65889.0,0.23540911]
[1727578533997,0.171872,65890.0,65889.0,0.10736954]
[1727578534502,0.19959287,65890.0,65889.0,0.10736954]
[1727578535102,0.19959287,65890.0,65888.0,0.07933655]
[1727578535304,0.19959287,65890.0,65884.0,0.0035]
[1727578535305,0.075878,65885.0,65884.0,0.0035]
[1727578535497,0.075878,65885.0,65884.0,0.10781085]
[1727578535498,0.3612,65885.0,65884.0,0.10781085]
[1727578535690,0.075883,65881.0,65880.0,0.0910443]
[1727578535897,0.186283,65881.0,65880.0,0.10729141]
[1727578538305,0.187283,65881.0,65880.0,0.10729141]
[1727578538597,0.188283,65881.0,65880.0,0.10729141]
[1727578539501,0.075886,65879.0,65876.0,0.0910443]
[1727578539809,0.3608,65882.0,65877.0,0.23433325]
[1727578540012,0.436681,65882.0,65881.0,0.09082764]
[1727578540302,0.436681,65882.0,65881.0,0.19794322]
[1727578541187,0.46453353,65882.0,65881.0,0.19794322]
[1727578541396,0.46453353,65882.0,65881.0,0.10711558]
[1727578541596,0.46553353,65882.0,65881.0,0.10711558]
[1727578542197,0.46653353,65882.0,65881.0,0.10711558]
[1727578542595,0.075886,65878.0,65877.0,0.09082764]
[1727578542796,0.186286,65878.0,65877.0,0.19754251]
[1727578543293,0.186286,65878.0,65877.0,0.10671487]
[1727578543907,0.14831428,65878.0,65877.0,0.10671487]
[1727578544593,0.14931428,65878.0,65877.0,0.10671487]
[1727578545306,0.15031428,65878.0,65877.0,0.10671487]
[1727578547702,0.075889,65876.0,65874.0,0.03767707]
[1727578548011,0.1104,65875.0,65874.0,0.03767707]
[1727578549002,0.186289,65875.0,65874.0,0.03767707]
[1727578549606,0.187289,65875.0,65874.0,0.03767707]
[1727578549801,0.077289,65875.0,65874.0,0.03767707]
[1727578549997,0.187289,65875.0,65874.0,0.03767707]
[1727578550805,0.188289,65875.0,65874.0,0.03767707]
[1727578554802,0.188289,65875.0,65874.0,0.14429289]
[1727578555605,0.188289,65875.0,65874.0,0.14429406]
[1727578556009,0.2155786,65875.0,65874.0,0.14429406]
[1727578557315,0.5763786,65875.0,65874.0,0.14429406]
[1727578560322,0.5763786,65875.0,65874.0,0.23525099]
[1727578561321,0.5763786,65875.0,65874.0,0.14442335]
[1727578562321,0.5763786,65875.0,65874.0,0.27182482]
[1727578562727,0.5763786,65875.0,65874.0,0.03767707]
[1727578563117,0.4663786,65875.0,65874.0,0.03767707]
[1727578563316,0.5763786,65875.0,65874.0,0.03767707]
[1727578564428,0.5763786,65875.0,65874.0,0.08315157]
[1727578564628,0.2155786,65875.0,65874.0,0.03767707]
[1727578564921,0.5763786,65875.0,65874.0,0.03767707]
[1727578565923,0.2155786,65875.0,65874.0,0.03767707]
[1727578566224,0.5763786,65875.0,65874.0,0.03767707]
[1727578566523,0.2155786,65875.0,65874.0,0.03767707]
[1727578566725,0.5763786,65875.0,65874.0,0.03767707]
[1727578567421,0.5763786,65875.0,65872.0,0.0454745]
[1727578567627,0.0008,65873.0,65872.0,0.0454745]
[1727578567825,0.0008,65873.0,65871.0,0.0454745]
[1727578567826,0.075893,65872.0,65871.0,0.0454745]
[1727578568018,0.186693,65872.0,65871.0,0.0454745]
[1727578568222,0.075894,65871.0,65870.0,0.0035]
[1727578568418,0.075894,65871.0,65868.0,0.06063267]
[1727578568419,0.0008,65871.0,65868.0,0.06063267]
[1727578568618,0.1108,65869.0,65868.0,0.06063267]
[1727578569221,0.186696,65869.0,65868.0,0.06063267]
[1727578569926,0.186696,65869.0,65868.0,0.23468653]
[1727578570619,0.187696,65869.0,65868.0,0.23468653]
[1727578570816,0.187696,65869.0,65868.0,0.34088217]
[1727578571129,0.188696,65869.0,65868.0,0.34088217]
[1727578571329,0.188696,65869.0,65868.0,0.23468653]
[1727578571726,0.187696,65869.0,65868.0,0.34088217]
[1727578571936,0.188696,65869.0,65868.0,0.33931892]
[1727578573520,0.188696,65869.0,65868.0,0.33930707]
[1727578576937,0.075899,65867.0,65866.0,0.0490172]
[1727578577228,0.076699,65867.0,65866.0,0.0455172]
[1727578578840,0.077699,65867.0,65866.0,0.0455172]
[1727578579134,0.077699,65867.0,65865.0,0.0343]
[1727578579135,0.0759,65866.0,65865.0,0.0343]
[1727578579332,0.1859,65866.0,65865.0,0.0343]
[1727578579542,0.1867,65866.0,65865.0,0.0343]
[1727578580425,0.1877,65866.0,65865.0,0.0343]
[1727578580831,0.5485,65866.0,65865.0,0.0343]
[1727578581532,0.5495,65866.0,65865.0,0.0343]
[1727578584939,0.5495,65866.0,65865.0,0.267957]
[1727578585529,0.1887,65866.0,65865.0,0.267957]
[1727578585727,0.5495,65866.0,65865.0,0.267957]
[1727578588032,0.5495,65866.0,65865.0,0.233657]
[1727578588944,0.51152042,65866.0,65865.0,0.233657]
[1727578591040,0.15072042,65866.0,65865.0,0.233657]
[1727578591239,0.51152042,65866.0,65865.0,0.233657]
[1727578592047,0.51152042,65866.0,65865.0,0.10659721]
[1727578593037,0.15072042,65866.0,65865.0,0.10659721]
[1727578593237,0.51152042,65866.0,65865.0,0.10659721]
[1727578594247,0.15072042,65866.0,65865.0,0.10659721]
[1727578594548,0.51152042,65866.0,65865.0,0.10659721]
[1727578597043,0.15072042,65866.0,65865.0,0.10659721]
[1727578597238,0.51152042,65866.0,65865.0,0.10659721]
[1727578597648,0.15072042,65866.0,65865.0,0.10659721]
[1727578597960,0.5495,65866.0,65865.0,0.1064085]
[1727578598637,0.4395,65866.0,65865.0,0.1064085]
[1727578598838,0.5495,65866.0,65865.0,0.1064085]
[1727578600039,0.4708,65866.0,65865.0,0.23319192]
[1727578600235,0.5467,65866.0,65865.0,0.23319192]
[1727578610661,0.075903,65864.0,65862.0,0.10969564]
[1727578610863,0.075903,65864.0,65863.0,0.23249993]
[1727578612761,0.075903,65863.0,65862.0,0.0035]
[1727578612957,0.186703,65863.0,65862.0,0.33966546]
[1727578613268,0.186703,65863.0,65862.0,0.23346982]
[1727578613965,0.185703,65863.0,65862.0,0.23246982]
[1727578614268,0.186703,65863.0,65862.0,0.23246982]
[1727578614954,0.187703,65863.0,65862.0,0.001]
[1727578622066,0.187703,65863.0,65862.0,0.33969048]
[1727578623057,0.1128,65863.0,65862.0,0.38027713]
[1727578624158,0.188703,65863.0,65862.0,0.38027713]
[1727578624870,0.188703,65863.0,65862.0,0.48659994]
[1727578625071,0.188703,65863.0,65862.0,0.23349484]
[1727578625759,0.188703,65863.0,65862.0,0.001]
[1727578626068,0.188703,65863.0,65862.0,0.23323308]
[1727578627672,0.549503,65863.0,65862.0,0.23323308]
[1727578630068,0.549503,65863.0,65862.0,0.07692867]
[1727578630371,0.549503,65863.0,65862.0,0.001]
[1727578630766,0.549503,65863.0,65862.0,0.07692867]
[1727578631060,0.549503,65863.0,65862.0,0.001]
[1727578631472,0.549503,65863.0,65862.0,0.07692867]
[1727578632270,0.549503,65863.0,65862.0,0.001]
[1727578632568,0.549503,65863.0,65862.0,0.07692867]
[1727578632772,0.549503,65863.0,65862.0,0.001]
[1727578632969,0.549503,65863.0,65862.0,0.07692867]
[1727578633171,0.549503,65863.0,65862.0,0.001]
[1727578634173,0.188703,65863.0,65862.0,0.001]
[1727578634366,0.549503,65863.0,65862.0,0.001]
[1727578634868,0.549503,65863.0,65862.0,0.07692867]
[1727578635069,0.549503,65863.0,65862.0,0.001]
[1727578637192,0.51152139,65863.0,65862.0,0.2323031]
[1727578645172,0.51152139,65863.0,65862.0,0.10652333]
[1727578649681,0.15072139,65863.0,65862.0,0.10652333]
[1727578649878,0.51152139,65863.0,65862.0,0.10652333]
[1727578650285,0.15072139,65863.0,65862.0,0.10652333]
[1727578650687,0.51152139,65863.0,65862.0,0.10652333]
[1727578651387,0.15072139,65863.0,65862.0,0.10652333]
[1727578651581,0.51152139,65863.0,65862.0,0.10652333]
[1727578651786,0.15072139,65863.0,65862.0,0.10652333]
[1727578652199,0.51152139,65863.0,65862.0,0.33829368]
[1727578652689,0.51152139,65863.0,65862.0,0.48393969]
[1727578652877,0.51152139,65863.0,65862.0,0.33829368]
[1727578653481,0.51152139,65863.0,65862.0,0.48395494]
[1727578655077,0.51152139,65863.0,65862.0,0.48373914]
[1727578659591,0.54184919,65863.0,65862.0,0.37741633]
[1727578660091,0.48867838,65863.0,65862.0,0.3768518]
[1727578664890,0.48867838,65863.0,65862.0,0.37414315]
[1727578667213,0.48867838,65863.0,65862.0,0.22973092]
[1727578669794,0.48867838,65863.0,65862.0,0.229732]
[1727578670894,0.48867838,65863.0,65862.0,0.001]
[1727578671089,0.48867838,65863.0,65862.0,0.10534417]
[1727578671296,0.48867838,65863.0,65862.0,0.12537425]
[1727578671498,0.48867838,65863.0,65862.0,0.001]
[1727578671701,0.48867838,65863.0,65862.0,0.10534411]
[1727578671887,0.48867838,65863.0,65862.0,0.22971829]
[1727578672395,0.48867838,65863.0,65862.0,0.12537418]
[1727578672784,0.48867838,65863.0,65862.0,0.001]
[1727578675498,0.48867838,65863.0,65860.0,0.04678594]
[1727578675793,0.0008,65861.0,65860.0,0.04678594]
[1727578675993,0.08952054,65861.0,65860.0,0.04678594]
[1727578676897,0.08952054,65861.0,65860.0,0.04778594]
[1727578677500,0.08952054,65861.0,65860.0,0.04678594]
[1727578677699,0.09052054,65861.0,65860.0,0.04778594]
[1727578677900,0.09152054,65861.0,65860.0,0.04778594]
[1727578678592,0.49903188,65861.0,65860.0,0.001]
[1727578679002,0.49903188,65861.0,65860.0,0.076906]
[1727578679703,0.38400678,65861.0,65860.0,0.076906]
[1727578680595,0.38400678,65861.0,65860.0,0.04722095]
[1727578681395,0.41179273,65861.0,65860.0,0.04722095]
[1727578682702,0.03058595,65861.0,65860.0,0.04722095]
[1727578683504,0.41373538,65863.0,65860.0,0.42171655]
[1727578683707,0.075904,65862.0,65861.0,0.47962159]
[1727578684702,0.075904,65862.0,65861.0,0.47923627]
[1727578685004,0.076904,65862.0,65861.0,0.47923627]
[1727578686003,0.076904,65862.0,65861.0,0.33513954]
[1727578686401,0.076904,65862.0,65861.0,0.47924629]
[1727578686605,0.076904,65862.0,65861.0,0.33513954]
[1727578686808,0.076904,65862.0,65861.0,0.47924758]
[1727578687009,0.076904,65862.0,65861.0,0.33513954]
[1727578688510,0.076904,65862.0,65861.0,0.10629804]
[1727578688809,0.077904,65862.0,65861.0,0.4786727]
[1727578690001,0.002,65862.0,65861.0,0.4786727]
[1727578690202,0.077904,65862.0,65861.0,0.4786727]
[1727578693713,0.077904,65862.0,65861.0,0.47729244]
[1727578699612,0.077904,65862.0,65861.0,0.3709944]
[1727578703419,0.077904,65862.0,65861.0,0.37107321]
[1727578704707,0.077904,65862.0,65861.0,0.22746208]
[1727578706614,0.077904,65862.0,65861.0,0.77416808]
[1727578706615,0.002,65862.0,65861.0,0.77416808]
[1727578706813,0.0043,65867.0,65866.0,0.0759]
[1727578707014,0.0008,65869.0,65868.0,0.075898]
[1727578707316,0.0008,65869.0,65868.0,0.66416008]
[1727578708115,0.0008,65869.0,65868.0,0.66310253]
[1727578709027,0.0018,65869.0,65868.0,0.66310253]
[1727578709418,0.0018,65869.0,65868.0,0.53998654]
[1727578709634,0.0028,65869.0,65868.0,0.53998654]
[1727578712532,0.0028,65869.0,65868.0,0.6309736]
[1727578712827,0.1143,65871.0,65869.0,0.075896]
[1727578713137,0.1143,65871.0,65870.0,0.22629996]
[1727578713326,0.1108,65871.0,65870.0,0.22629996]
[1727578714524,0.1118,65871.0,65870.0,0.22629996]
[1727578715333,0.1128,65871.0,65870.0,0.22629996]
[1727578716535,0.1118,65871.0,65870.0,0.22629996]
[1727578716723,0.1128,65871.0,65870.0,0.22929996]
[1727578717434,0.1128,65871.0,65870.0,0.1058835]
[1727578717732,0.1128,65871.0,65870.0,0.003]
[1727578718332,0.0028,65871.0,65870.0,0.003]
[1727578720023,0.04938922,65871.0,65870.0,0.078895]
[1727578720223,0.04188455,65871.0,65870.0,0.078895]
[1727578720532,0.12213696,65871.0,65870.0,0.078895]
[1727578722926,0.12213696,65871.0,65868.0,0.0352]
[1727578723128,0.25540788,65870.0,65869.0,0.075896]
[1727578723333,0.25540788,65870.0,65868.0,0.09768036]
[1727578723524,0.12013696,65869.0,65868.0,0.17357836]
[1727578724126,0.12013696,65869.0,65868.0,0.17557836]
[1727578725840,0.12213696,65869.0,65868.0,0.17357836]
[1727578727726,0.12213696,65869.0,65868.0,0.24936559]
[1727578727727,0.0028,65869.0,65868.0,0.24936559]
[1727578728243,0.0028,65869.0,65868.0,0.17357836]
[1727578728443,0.0028,65869.0,65868.0,0.24936559]
[1727578731444,0.0028,65869.0,65868.0,0.17357836]
[1727578732044,0.0028,65869.0,65868.0,0.075898]
[1727578732435,0.0028,65869.0,65868.0,0.17824581]
[1727578732636,0.0028,65869.0,65868.0,0.25406076]
[1727578732934,0.0028,65869.0,65868.0,0.17824581]
[1727578734940,0.12212529,65869.0,65868.0,0.075898]
[1727578735648,0.07553638,65869.0,65868.0,0.075898]
[1727578735851,0.0028,65869.0,65868.0,0.075898]
[1727578736550,0.04938902,65869.0,65868.0,0.075898]
[1727578737049,0.03646671,65869.0,65868.0,0.075898]
[1727578737252,0.0028,65869.0,65868.0,0.075898]
[1727578742843,0.12214967,65869.0,65868.0,0.075898]
[1727578743542,0.0028,65869.0,65868.0,0.075898]
[1727578747243,0.39077441,65869.0,65866.0,0.0035]
[1727578747448,0.1108,65867.0,65866.0,0.0035]
[1727578747650,0.1108,65867.0,65863.0,0.075903]
[1727578747853,0.1108,65864.0,65863.0,0.075903]
[1727578748055,0.05763381,65864.0,65863.0,0.30091247]
[1727578748559,0.05763381,65864.0,65863.0,0.36262322]
[1727578749043,0.0008,65864.0,65863.0,0.36262322]
[1727578749455,0.0018,65864.0,65863.0,0.36262322]
[1727578749857,0.0028,65864.0,65863.0,0.36262305]
[1727578750052,0.0028,65864.0,65863.0,0.38635785]
[1727578750256,0.0028,65864.0,65863.0,0.36262295]
[1727578750961,0.0028,65864.0,65863.0,0.30091247]
[1727578753369,0.0028,65864.0,65863.0,0.30000511]
[1727578758564,0.10882531,65864.0,65863.0,0.075903]
[1727578758868,0.14282389,65864.0,65863.0,0.09963783]
[1727578762260,0.03679858,65864.0,65863.0,0.09963783]
[1727578762656,0.0762212,65864.0,65863.0,0.09963783]
[1727578763070,0.07616886,65864.0,65863.0,0.13761365]
[1727578763262,0.07616886,65864.0,65863.0,0.075903]
[1727578765477,0.0028,65864.0,65863.0,0.30008641]
[1727578768177,0.0028,65864.0,65863.0,0.30007172]
[1727578770875,0.0028,65864.0,65863.0,0.17817154]
[1727578771074,0.0028,65864.0,65863.0,0.30007727]
[1727578771277,0.0028,65864.0,65863.0,0.17817154]
[1727578771467,0.0028,65864.0,65863.0,0.30007179]
[1727578772569,0.03677658,65864.0,65863.0,0.075903]
[1727578772878,0.03677646,65864.0,65863.0,0.075903]
[1727578773968,0.07622283,65864.0,65863.0,0.075903]
[1727578777569,0.07622283,65864.0,65862.0,0.0035]
[1727578777767,0.17539486,65863.0,65862.0,0.0035]
[1727578777971,0.17539486,65863.0,65858.0,0.4668776]
[1727578778285,0.0008,65859.0,65858.0,0.4668776]
[1727578778487,0.0008,65859.0,65858.0,0.3608]
[1727578778688,0.03475539,65859.0,65858.0,0.3608]
[1727578778988,0.07401607,65859.0,65858.0,0.3608]
[1727578779176,0.03475539,65859.0,65858.0,0.3608]
[1727578779682,0.03575539,65859.0,65858.0,0.3608]
[1727578780471,0.0018,65859.0,65858.0,0.22451433]
[1727578780990,0.0028,65859.0,65858.0,0.22451433]
[1727578787308,0.0028,65859.0,65858.0,0.22442062]
[1727578787590,0.07568409,65859.0,65856.0,0.00030175]
[1727578787888,0.106819,65857.0,65856.0,0.00030175]
[1727578788088,0.14054529,65857.0,65856.0,0.00030175]
[1727578789090,0.07368734,65857.0,65856.0,0.00030175]
[1727578789588,0.07468734,65857.0,65856.0,0.00030175]
[1727578789787,0.07468734,65857.0,65856.0,0.06201866]
[1727578789988,0.07468734,65857.0,65856.0,0.02403902]
[1727578790182,0.07468734,65857.0,65856.0,0.04777624]
[1727578790387,0.07568734,65857.0,65856.0,0.02403897]
[1727578791495,0.07568734,65857.0,65856.0,0.09994997]
[1727578792393,0.07569745,65857.0,65856.0,0.09994997]
[1727578793484,0.07569745,65857.0,65856.0,0.07621275]
[1727578795489,0.03653247,65857.0,65856.0,0.30057481]
[1727578795794,0.12117179,65859.0,65857.0,0.07591]
[1727578795981,0.12117179,65859.0,65858.0,0.36603841]
[1727578796580,0.12117179,65859.0,65858.0,0.44194741]
[1727578796983,0.12217179,65859.0,65858.0,0.44194741]
[1727578797192,0.12317179,65859.0,65858.0,0.44194741]
[1727578801097,0.12317179,65859.0,65858.0,0.67342205]
[1727578801599,0.12317179,65859.0,65858.0,0.55194741]
[1727578802488,0.12317179,65859.0,65858.0,0.55130094]
[1727578802800,0.12317179,65859.0,65858.0,0.29509214]
[1727578802801,0.19666668,65859.0,65858.0,0.29509214]
[1727578803593,0.07549489,65859.0,65858.0,0.20964446]
[1727578803802,0.07549489,65859.0,65858.0,0.29509202]
[1727578805805,0.07546999,65859.0,65858.0,0.29509202]
[1727578808000,0.07546999,65859.0,65858.0,0.185909]
[1727578808201,0.07546999,65859.0,65858.0,0.546709]
[1727578809400,0.10812532,65859.0,65858.0,0.546709]
[1727578809608,0.14212273,65859.0,65858.0,0.546709]
[1727578810600,0.14212273,65859.0,65858.0,0.87699126]
[1727578810601,0.002,65859.0,65858.0,0.87699126]
[1727578811996,0.002,65859.0,65858.0,0.77074871]
[1727578812197,0.002,65859.0,65858.0,0.79448404]
[1727578813108,0.002,65859.0,65858.0,0.87993139]
[1727578814503,0.002,65859.0,65858.0,1.12762918]
[1727578815404,0.002,65859.0,65858.0,1.12760808]
[1727578815903,0.0043,65863.0,65861.0,0.075905]
[1727578816101,0.0043,65863.0,65862.0,0.33402976]
[1727578816301,0.0008,65863.0,65862.0,0.33402976]
[1727578816704,0.0008,65863.0,65862.0,0.40993376]
[1727578817330,0.0028,65863.0,65862.0,0.40993376]
[1727578819602,0.0028,65863.0,65862.0,0.48113861]
[1727578819809,0.0028,65863.0,65862.0,0.51911453]
[1727578820402,0.0028,65863.0,65862.0,0.54594172]
[1727578821612,0.0028,65863.0,65862.0,0.49847182]
[1727578821912,0.0028,65863.0,65862.0,0.43676095]
[1727578825099,0.0028,65863.0,65862.0,0.21288328]
[1727578825302,0.0028,65863.0,65862.0,0.4367763]
[1727578825506,0.0028,65863.0,65862.0,0.46051122]
[1727578825710,0.03406919,65863.0,65862.0,0.2366182]
[1727578825918,0.03406919,65863.0,65862.0,0.1266182]
[1727578826101,0.14019451,65863.0,65862.0,0.09963892]
[1727578827803,0.03406919,65863.0,65862.0,0.09963892]
[1727578829813,0.03406919,65863.0,65862.0,0.075904]
[1727578832408,0.14019451,65863.0,65862.0,0.075904]
[1727578832614,0.0366,65865.0,65862.0,0.44117934]
[1727578832822,0.0366,65865.0,65863.0,0.4866954]
[1727578833119,0.0366,65865.0,65864.0,0.36527534]
[1727578833708,0.0376,65865.0,65864.0,0.36527534]
[1727578835119,0.0376,65865.0,65864.0,0.36727534]
[1727578835416,0.0386,65865.0,65864.0,0.36727534]
[1727578835817,0.10302868,65866.0,65864.0,0.36727534]
[1727578836119,0.10302868,65866.0,65865.0,0.36527534]
[1727578837020,0.10402868,65866.0,65865.0,0.36527534]
[1727578837620,0.10502868,65866.0,65865.0,0.36527534]
[1727578837926,0.10502868,65866.0,65865.0,0.36727534]
[1727578840719,0.10502868,65866.0,65865.0,0.22590808]
[1727578847626,0.17966357,65866.0,65865.0,0.002]
[1727578849631,0.1796422,65866.0,65865.0,0.002]
[1727578854339,0.17971387,65866.0,65865.0,0.002]
[1727578855737,0.10502868,65866.0,65865.0,0.22520259]
[1727578859335,0.18092868,65866.0,65865.0,0.19509987]
[1727578859534,0.18092868,65866.0,65865.0,0.10395756]
[1727578860441,0.54172868,65866.0,65865.0,0.10395756]
[1727578860841,0.54072868,65866.0,65865.0,0.10195756]
[1727578861336,0.53972868,65866.0,65865.0,0.10195756]
[1727578862630,0.075901,65865.0,65862.0,0.09114231]
[1727578862834,0.1108,65863.0,65858.0,0.079409]
[1727578863036,0.0008,65859.0,65858.0,0.079409]
[1727578863241,0.0008,65859.0,65858.0,0.075909]
[1727578864043,0.1143,65863.0,65862.0,0.0022]
[1727578864343,0.14508181,65863.0,65862.0,0.0022]
[1727578864549,0.14608181,65863.0,65862.0,0.0022]
[1727578864935,0.14508181,65863.0,65862.0,0.0022]
[1727578865137,0.22098481,65863.0,65862.0,0.0022]
[1727578865338,0.22098481,65863.0,65858.0,0.079409]
[1727578865647,0.0018,65859.0,65858.0,0.082409]
[1727578865848,0.0018,65859.0,65858.0,0.078909]
[1727578867143,0.1088,65860.0,65858.0,0.075909]
[1727578867542,0.001,65859.0,65858.0,0.075909]
[1727578867934,0.002,65859.0,65858.0,0.076909]
[1727578868649,0.001,65859.0,65858.0,0.076909]
[1727578869351,0.002,65859.0,65858.0,0.076909]
[1727578869756,0.03625256,65859.0,65858.0,0.001]
[1727578869941,0.002,65859.0,65858.0,0.001]